fUSD/lending_fUSD_20260517
["ID","MTS","AMOUNT","RATE_DAILY","PERIOD"]
[422488435,1778991044000,-12590.52820531,0.0003,5]
[422488439,1778991044000,-692.61508342,0.000301,2]
[422488436,1778991044000,-215.0785988,0.0003,30]
[422488441,1778991044000,-692.6150834,0.000301,2]
[422488445,1778991044000,-449.13,0.00030137,2]
[422488456,1778991044000,-152.0,0.00030174,30]
[422488455,1778991044000,-193.0,0.00030158,30]
[422488447,1778991044000,-380.29,0.00030137,2]
[422488443,1778991044000,-631.48285465,0.0003013,2]
[422488452,1778991044000,-155.0,0.00030158,30]
[422488451,1778991044000,-343.0,0.00030158,30]
[422488459,1778991044000,-152.0,0.00030175,30]
[422488460,1778991044000,-264.0,0.00030175,30]
[422488457,1778991044000,-151.0,0.00030174,30]
[422488454,1778991044000,-491.0,0.00030158,30]
[422488462,1778991044000,-2008.62,0.000302,2]
[422488450,1778991044000,-246.0,0.00030158,30]
[422488448,1778991044000,-1269.30832739,0.00030137,30]
[422488453,1778991044000,-154.0,0.00030158,30]
[422488464,1778991044000,-151.0,0.00030239,2]
[422488446,1778991044000,-200.0,0.00030137,2]
[422488444,1778991044000,-908915.69195936,0.0003013,7]
[422488449,1778991044000,-181.84,0.00030141,2]
[422488520,1778991045000,-246.0,0.00031158,30]
[422488532,1778991045000,-167.385,0.000312,7]
[422488524,1778991045000,-491.0,0.00031158,30]
[422488522,1778991045000,-155.0,0.00031158,30]
[422488523,1778991045000,-154.0,0.00031158,30]
[422488525,1778991045000,-193.0,0.00031158,30]
[422488530,1778991045000,-264.0,0.00031175,30]
[422488535,1778991045000,-181.84,0.00031347,2]
[422488531,1778991045000,-154.33877353,0.00031175,30]
[422488533,1778991045000,-167.385,0.000312,7]
[422488527,1778991045000,-151.0,0.00031174,30]
[422488540,1778991045000,-270.82,0.00031395,120]
[422488534,1778991045000,-2398.97,0.00031236,2]
[422488538,1778991045000,-150.0,0.00031395,120]
[422488539,1778991045000,-275.0,0.00031395,120]
[422488537,1778991045000,-391.0,0.00031395,120]
[422488541,1778991045000,-549.0,0.00031409,6]
[422488542,1778991045000,-152.0,0.0003149,4]
[422488543,1778991045000,-531.04058081,0.00031491,7]
[422488546,1778991045000,-524.96135102,0.00031491,7]
[422488547,1778991045000,-248.78957775,0.00031491,7]
[422488551,1778991045000,-261.245373,0.000315,7]
[422488544,1778991045000,-165.21166844,0.00031491,7]
[422488517,1778991045000,-1223.0,0.00031155,2]
[422488536,1778991045000,-250.0,0.00031395,120]
[422488521,1778991045000,-343.0,0.00031158,30]
[422488515,1778991045000,-150.0,0.00031155,2]
[422488519,1778991045000,-6055.0,0.00031155,2]
[422488497,1778991045000,-2000.0,0.00030649,2]
[422488498,1778991045000,-2000.0,0.00030649,2]
[422488504,1778991045000,-625.0,0.00030796,2]
[422488500,1778991045000,-2000.0,0.00030649,2]
[422488502,1778991045000,-2000.0,0.00030649,2]
[422488496,1778991045000,-2000.0,0.00030649,2]
[422488495,1778991045000,-2000.0,0.00030649,2]
[422488505,1778991045000,-207.27,0.00030796,120]
[422488503,1778991045000,-1994.0,0.00030649,2]
[422488499,1778991045000,-2000.0,0.00030649,2]
[422488494,1778991045000,-2000.0,0.00030649,2]
[422488501,1778991045000,-2000.0,0.00030649,2]
[422488512,1778991045000,-150.0,0.00031011,2]
[422488506,1778991045000,-1200.87007222,0.0003084,2]
[422488508,1778991045000,-222.29,0.000309,7]
[422488507,1778991045000,-549.0,0.00030875,6]
[422488510,1778991045000,-11492.9898118,0.00031,2]
[422488509,1778991045000,-1202.01,0.000309,7]
[422488514,1778991045000,-5530.0,0.000311,3]
[422488516,1778991045000,-1270.0,0.00031155,2]
[422488513,1778991045000,-200.0,0.00031096,2]
[422488511,1778991045000,-264.15057725,0.00031,2]
[422488528,1778991045000,-156.0,0.00031175,30]
[422488526,1778991045000,-152.0,0.00031174,30]
[422488518,1778991045000,-417.0,0.00031155,2]
[422488529,1778991045000,-152.0,0.00031175,30]
[422488553,1778991045000,-371.903411,0.000315,7]
[422488554,1778991045000,-371.903411,0.000315,7]
[422488545,1778991045000,-241.91649627,0.00031491,7]
[422488592,1778991045000,-592.735492,0.000316,7]
[422488582,1778991045000,-290.33345119,0.00031524,7]
[422488585,1778991045000,-312.91020074,0.00031524,7]
[422488587,1778991045000,-166.95712835,0.00031525,7]
[422488580,1778991045000,-260.75245567,0.00031524,7]
[422488581,1778991045000,-262.74937142,0.00031524,7]
[422488586,1778991045000,-208.303148,0.00031524,7]
[422488584,1778991045000,-205.02172777,0.00031524,7]
[422488591,1778991045000,-592.735492,0.000316,7]
[422488583,1778991045000,-200.97711459,0.00031524,7]
[422488590,1778991045000,-592.735492,0.000316,7]
[422488589,1778991045000,-318.05625693,0.00031525,7]
[422488595,1778991045000,-176.847513,0.000316,7]
[422488602,1778991045000,-151.0,0.000316,7]
[422488593,1778991045000,-592.735492,0.000316,7]
[422488594,1778991045000,-176.847513,0.000316,7]
[422488597,1778991045000,-176.847513,0.000316,7]
[422488596,1778991045000,-176.847513,0.000316,7]
[422488598,1778991045000,-151.0,0.000316,7]
[422488600,1778991045000,-151.0,0.000316,7]
[422488601,1778991045000,-151.0,0.000316,7]
[422488599,1778991045000,-151.0,0.000316,7]
[422488603,1778991045000,-151.0,0.000316,7]
[422488550,1778991045000,-261.245373,0.000315,7]
[422488604,1778991045000,-215.895752,0.000316,7]
[422488578,1778991045000,-267.47841367,0.00031524,7]
[422488588,1778991045000,-318.48382473,0.00031525,7]
[422488577,1778991045000,-263.2447048,0.00031524,7]
[422488549,1778991045000,-261.245373,0.000315,7]
[422488573,1778991045000,-471.38275657,0.00031524,7]
[422488552,1778991045000,-261.245373,0.000315,7]
[422488548,1778991045000,-1000.0,0.000315,7]
[422488558,1778991045000,-151.0,0.000315,7]
[422488561,1778991045000,-800.0,0.00031507,30]
[422488564,1778991045000,-800.0,0.00031507,30]
[422488557,1778991045000,-371.903411,0.000315,7]
[422488560,1778991045000,-2095.0,0.00031507,30]
[422488556,1778991045000,-151.0,0.000315,7]
[422488559,1778991045000,-1269.30832739,0.00031507,30]
[422488566,1778991045000,-600.0,0.00031507,30]
[422488562,1778991045000,-800.0,0.00031507,30]
[422488565,1778991045000,-681.0,0.00031507,30]
[422488563,1778991045000,-800.0,0.00031507,30]
[422488576,1778991045000,-174.00927571,0.00031524,7]
[422488567,1778991045000,-600.0,0.00031507,30]
[422488574,1778991045000,-454.76509088,0.00031524,7]
[422488575,1778991045000,-226.69370499,0.00031524,7]
[422488568,1778991045000,-600.0,0.00031507,30]
[422488569,1778991045000,-600.0,0.00031507,30]
[422488571,1778991045000,-407.0,0.00031507,30]
[422488572,1778991045000,-466.96773635,0.00031524,2]
[422488570,1778991045000,-600.0,0.00031507,30]
[422488555,1778991045000,-371.903411,0.000315,7]
[422488579,1778991045000,-206.50364102,0.00031524,7]
[422488645,1778991046000,-371.59053031,0.00032096,7]
[422488647,1778991046000,-708.05410774,0.00032096,7]
[422488646,1778991046000,-250.23524728,0.00032096,7]
[422488643,1778991046000,-215.0785988,0.00032,30]
[422488641,1778991046000,-549.0,0.00031943,7]
[422488635,1778991046000,-299.822509,0.000319,7]
[422488639,1778991046000,-2126.743381,0.000319,7]
[422488638,1778991046000,-2126.743381,0.000319,7]
[422488636,1778991046000,-299.822509,0.000319,7]
[422488642,1778991046000,-160.0,0.00032,3]
[422488648,1778991046000,-305.63074081,0.00032096,7]
[422488640,1778991046000,-2126.743381,0.000319,7]
[422488649,1778991046000,-335.49624851,0.00032096,7]
[422488658,1778991046000,-232.7103469,0.00032096,2]
[422488651,1778991046000,-153.33814862,0.00032096,7]
[422488652,1778991046000,-330.42333687,0.00032096,7]
[422488654,1778991046000,-483.83299255,0.00032096,7]
[422488644,1778991046000,-200.0,0.00032055,2]
[422488655,1778991046000,-193.3451439,0.00032096,7]
[422488653,1778991046000,-215.41949644,0.00032096,7]
[422488657,1778991046000,-699.94846803,0.00032096,7]
[422488667,1778991046000,-181.41360905,0.00032129,7]
[422488660,1778991046000,-352.26657949,0.00032096,7]
[422488659,1778991046000,-335.07009356,0.00032096,7]
[422488662,1778991046000,-1000.0,0.00032114,7]
[422488637,1778991046000,-2126.743381,0.000319,7]
[422488650,1778991046000,-253.86404357,0.00032096,7]
[422488631,1778991046000,-151.0,0.000319,7]
[422488607,1778991046000,-215.895752,0.000316,7]
[422488633,1778991046000,-299.822509,0.000319,7]
[422488665,1778991046000,-440.55108259,0.00032129,7]
[422488605,1778991046000,-215.895752,0.000316,7]
[422488617,1778991046000,-5530.0,0.000317,5]
[422488609,1778991046000,-2163.748438,0.000316,7]
[422488608,1778991046000,-2163.748438,0.000316,7]
[422488606,1778991046000,-215.895752,0.000316,7]
[422488612,1778991046000,-151.0,0.000316,7]
[422488611,1778991046000,-2163.748438,0.000316,7]
[422488614,1778991046000,-151.0,0.000316,7]
[422488610,1778991046000,-2163.748438,0.000316,7]
[422488615,1778991046000,-151.0,0.000316,7]
[422488613,1778991046000,-151.0,0.000316,7]
[422488616,1778991046000,-11340.79548359,0.00031613,2]
[422488619,1778991046000,-621.0,0.00031798,30]
[422488618,1778991046000,-2000.0,0.00031785,120]
[422488624,1778991046000,-2910.0,0.00031798,30]
[422488626,1778991046000,-1100.0,0.00031798,30]
[422488627,1778991046000,-902.0,0.00031798,30]
[422488628,1778991046000,-438.15,0.000318,10]
[422488625,1778991046000,-1100.0,0.00031798,30]
[422488620,1778991046000,-203.0,0.00031798,30]
[422488630,1778991046000,-151.0,0.000319,7]
[422488622,1778991046000,-3000.0,0.00031798,30]
[422488623,1778991046000,-3000.0,0.00031798,30]
[422488629,1778991046000,-500.0,0.00031863,2]
[422488621,1778991046000,-320.0,0.00031798,30]
[422488632,1778991046000,-299.822509,0.000319,7]
[422488634,1778991046000,-151.0,0.000319,7]
[422488663,1778991046000,-622.62364846,0.00032129,2]
[422488677,1778991046000,-205.71039829,0.00032129,7]
[422488664,1778991046000,-628.5103421,0.00032129,7]
[422488699,1778991046000,-246.0,0.00032158,30]
[422488694,1778991046000,-197.1166675,0.0003213,7]
[422488696,1778991046000,-477.72573709,0.0003213,7]
[422488698,1778991046000,-497.5791555,0.0003213,7]
[422488701,1778991046000,-155.0,0.00032158,30]
[422488702,1778991046000,-154.0,0.00032158,30]
[422488704,1778991046000,-193.0,0.00032158,30]
[422488714,1778991046000,-10738.0,0.0003224,2]
[422488707,1778991046000,-156.0,0.00032175,30]
[422488706,1778991046000,-151.0,0.00032174,30]
[422488703,1778991046000,-491.0,0.00032158,30]
[422488705,1778991046000,-152.0,0.00032174,30]
[422488711,1778991046000,-9004.33,0.000322,14]
[422488709,1778991046000,-264.0,0.00032175,30]
[422488713,1778991046000,-151.0,0.0003221,5]
[422488712,1778991046000,-167.385,0.000322,12]
[422488708,1778991046000,-152.0,0.00032175,30]
[422488715,1778991046000,-167.385,0.00032243,12]
[422488717,1778991046000,-549.0,0.00032477,7]
[422488718,1778991046000,-181.84,0.00032553,2]
[422488720,1778991046000,-850.0,0.00032562,30]
[422488719,1778991046000,-150.0,0.00032562,2]
[422488716,1778991046000,-1074.62266919,0.00032367,2]
[422488723,1778991046000,-850.0,0.00032562,30]
[422488721,1778991046000,-850.0,0.00032562,30]
[422488724,1778991046000,-850.0,0.00032562,30]
[422488661,1778991046000,-191.96350981,0.00032099,2]
[422488695,1778991046000,-339.61857189,0.0003213,7]
[422488693,1778991046000,-229.84949372,0.0003213,7]
[422488710,1778991046000,-403.6303962,0.00032181,2]
[422488697,1778991046000,-477.0843854,0.0003213,7]
[422488700,1778991046000,-343.0,0.00032158,30]
[422488656,1778991046000,-182.76685591,0.00032096,7]
[422488666,1778991046000,-172.51706958,0.00032129,7]
[422488668,1778991046000,-606.35345451,0.00032129,7]
[422488669,1778991046000,-163.2917966,0.00032129,7]
[422488672,1778991046000,-334.81749219,0.00032129,2]
[422488671,1778991046000,-453.38740999,0.00032129,7]
[422488670,1778991046000,-171.0481343,0.00032129,7]
[422488676,1778991046000,-299.43206112,0.00032129,7]
[422488674,1778991046000,-534.95682734,0.00032129,7]
[422488673,1778991046000,-526.4894096,0.00032129,7]
[422488675,1778991046000,-413.00728205,0.00032129,7]
[422488722,1778991046000,-850.0,0.00032562,30]
[422488679,1778991046000,-353.42669605,0.00032129,7]
[422488678,1778991046000,-521.50491134,0.00032129,7]
[422488692,1778991046000,-333.91425669,0.0003213,7]
[422488682,1778991046000,-580.66690239,0.00032129,7]
[422488691,1778991046000,-158.90272887,0.0003213,7]
[422488689,1778991046000,-222.805672,0.00032129,7]
[422488687,1778991046000,-205.08028382,0.00032129,7]
[422488688,1778991046000,-416.606296,0.00032129,7]
[422488685,1778991046000,-211.76792888,0.00032129,5]
[422488686,1778991046000,-469.36530111,0.00032129,7]
[422488690,1778991046000,-157.92679824,0.0003213,7]
[422488680,1778991046000,-263.97509479,0.00032129,2]
[422488683,1778991046000,-401.95422919,0.00032129,7]
[422488681,1778991046000,-525.49874284,0.00032129,7]
[422488684,1778991046000,-410.04345554,0.00032129,7]
[422488772,1778991047000,-154.0,0.00033158,30]
[422488761,1778991047000,-449.13,0.00032877,2]
[422488769,1778991047000,-246.0,0.00033158,30]
[422488771,1778991047000,-155.0,0.00033158,30]
[422488773,1778991047000,-491.0,0.00033158,30]
[422488765,1778991047000,-1269.30832739,0.00032877,30]
[422488768,1778991047000,-350.0,0.00033014,5]
[422488764,1778991047000,-1000.0,0.00032877,120]
[422488762,1778991047000,-448.43651,0.00032877,7]
[422488759,1778991047000,-448.43651,0.00032877,7]
[422488766,1778991047000,-222.29,0.00033,30]
[422488780,1778991047000,-167.385,0.000332,16]
[422488760,1778991047000,-448.43651,0.00032877,7]
[422488781,1778991047000,-3000.0,0.00033209,30]
[422488783,1778991047000,-3000.0,0.00033209,30]
[422488779,1778991047000,-264.0,0.00033175,30]
[422488770,1778991047000,-343.0,0.00033158,30]
[422488777,1778991047000,-156.0,0.00033175,30]
[422488774,1778991047000,-193.0,0.00033158,30]
[422488775,1778991047000,-152.0,0.00033174,30]
[422488776,1778991047000,-151.0,0.00033174,30]
[422488790,1778991047000,-300.0,0.00033452,15]
[422488787,1778991047000,-500.0,0.0003326,2]
[422488789,1778991047000,-167.385,0.00033287,17]
[422488794,1778991047000,-1600.0,0.00033492,2]
[422488784,1778991047000,-3000.0,0.00033209,30]
[422488782,1778991047000,-3000.0,0.00033209,30]
[422488758,1778991047000,-448.43651,0.00032877,7]
[422488778,1778991047000,-152.0,0.00033175,30]
[422488767,1778991047000,-549.0,0.00033011,8]
[422488726,1778991047000,-170.31,0.00032562,30]
[422488756,1778991047000,-1404.23803,0.000328,7]
[422488788,1778991047000,-1000.0,0.00033284,17]
[422488725,1778991047000,-748.0,0.00032562,30]
[422488730,1778991047000,-778.27956058,0.00032735,2]
[422488738,1778991047000,-150.0,0.00032765,2]
[422488732,1778991047000,-757.94181814,0.00032735,7]
[422488737,1778991047000,-150.0,0.00032765,2]
[422488728,1778991047000,-885.06763468,0.00032701,7]
[422488733,1778991047000,-150.0,0.00032765,2]
[422488731,1778991047000,-785.63792762,0.00032735,7]
[422488729,1778991047000,-874.93558503,0.00032701,7]
[422488727,1778991047000,-774.94,0.000327,7]
[422488739,1778991047000,-150.0,0.00032765,2]
[422488735,1778991047000,-150.0,0.00032765,2]
[422488757,1778991047000,-1404.23803,0.000328,7]
[422488734,1778991047000,-150.0,0.00032765,2]
[422488743,1778991047000,-150.0,0.00032765,2]
[422488740,1778991047000,-150.0,0.00032765,2]
[422488742,1778991047000,-150.0,0.00032765,2]
[422488745,1778991047000,-1354.0,0.00032765,2]
[422488750,1778991047000,-167.528222,0.000328,7]
[422488752,1778991047000,-167.528222,0.000328,7]
[422488747,1778991047000,-1202.01,0.000328,7]
[422488744,1778991047000,-927.0,0.00032765,2]
[422488754,1778991047000,-1404.23803,0.000328,7]
[422488741,1778991047000,-150.0,0.00032765,2]
[422488751,1778991047000,-167.528222,0.000328,7]
[422488753,1778991047000,-1404.23803,0.000328,7]
[422488749,1778991047000,-167.528222,0.000328,7]
[422488736,1778991047000,-150.0,0.00032765,2]
[422488792,1778991047000,-1600.0,0.00033492,2]
[422488791,1778991047000,-1503.0,0.00033454,5]
[422488786,1778991047000,-3000.0,0.00033209,30]
[422488824,1778991047000,-150.0,0.00034101,7]
[422488823,1778991047000,-150.0,0.00034101,7]
[422488826,1778991047000,-150.0,0.00034101,7]
[422488828,1778991047000,-150.0,0.00034155,2]
[422488832,1778991047000,-6055.0,0.00034155,2]
[422488833,1778991047000,-246.0,0.00034158,30]
[422488834,1778991047000,-343.0,0.00034158,30]
[422488831,1778991047000,-417.0,0.00034155,2]
[422488846,1778991047000,-150.0,0.00034197,7]
[422488836,1778991047000,-154.0,0.00034158,30]
[422488835,1778991047000,-155.0,0.00034158,30]
[422488838,1778991047000,-193.0,0.00034158,30]
[422488837,1778991047000,-491.0,0.00034158,30]
[422488842,1778991047000,-152.0,0.00034175,30]
[422488844,1778991047000,-151.0,0.00034182,7]
[422488840,1778991047000,-151.0,0.00034174,30]
[422488841,1778991047000,-156.0,0.00034175,30]
[422488839,1778991047000,-152.0,0.00034174,30]
[422488843,1778991047000,-264.0,0.00034175,30]
[422488845,1778991047000,-150.0,0.0003419,2]
[422488848,1778991047000,-167.385,0.000342,21]
[422488850,1778991047000,-1000.0,0.00034247,120]
[422488855,1778991047000,-150.0,0.00034274,7]
[422488847,1778991047000,-1000.0,0.00034199,21]
[422488849,1778991047000,-150.0,0.00034245,7]
[422488852,1778991047000,-150.0,0.00034247,7]
[422488854,1778991047000,-150.0,0.00034274,7]
[422488793,1778991047000,-1600.0,0.00033492,2]
[422488851,1778991047000,-1269.30832739,0.00034247,30]
[422488825,1778991047000,-150.0,0.00034101,7]
[422488830,1778991047000,-1223.0,0.00034155,2]
[422488853,1778991047000,-150.0,0.00034266,7]
[422488829,1778991047000,-1270.0,0.00034155,2]
[422488785,1778991047000,-3000.0,0.00033209,30]
[422488798,1778991047000,-1600.0,0.00033492,2]
[422488800,1778991047000,-1600.0,0.00033492,2]
[422488797,1778991047000,-1600.0,0.00033492,2]
[422488796,1778991047000,-1600.0,0.00033492,2]
[422488795,1778991047000,-1600.0,0.00033492,2]
[422488806,1778991047000,-1062.08116161,0.00033608,7]
[422488799,1778991047000,-1600.0,0.00033492,2]
[422488827,1778991047000,-150.0,0.00034149,7]
[422488805,1778991047000,-9004.33,0.000336,14]
[422488807,1778991047000,-1049.92270204,0.00033608,7]
[422488801,1778991047000,-1120.0,0.00033492,2]
[422488804,1778991047000,-207.27,0.00033596,120]
[422488803,1778991047000,-549.0,0.00033545,9]
[422488802,1778991047000,-1232.19444651,0.000335,2]
[422488819,1778991047000,-150.0,0.00034101,7]
[422488809,1778991047000,-927.91881215,0.00033642,7]
[422488810,1778991047000,-11340.79548359,0.00033709,2]
[422488814,1778991047000,-1000.0,0.00034078,9]
[422488808,1778991047000,-901.57865316,0.00033642,2]
[422488811,1778991047000,-625.0,0.00033796,2]
[422488817,1778991047000,-150.0,0.00034101,7]
[422488822,1778991047000,-150.0,0.00034101,7]
[422488818,1778991047000,-150.19263054,0.00034101,7]
[422488821,1778991047000,-150.0,0.00034101,7]
[422488816,1778991047000,-150.0,0.00034101,7]
[422488815,1778991047000,-549.0,0.00034079,9]
[422488820,1778991047000,-150.0,0.00034101,7]
[422488813,1778991047000,-206.783807,0.00034,9]
[422488812,1778991047000,-350.0,0.00033973,5]
[422488899,1778991048000,-774.94,0.000346,7]
[422488898,1778991048000,-150.0,0.00034596,7]
[422488906,1778991048000,-150.0,0.00034684,7]
[422488895,1778991048000,-150.0,0.00034539,7]
[422488897,1778991048000,-150.0,0.00034581,7]
[422488890,1778991048000,-400.0,0.00034481,2]
[422488892,1778991048000,-150.0,0.00034485,7]
[422488889,1778991048000,-400.0,0.00034481,2]
[422488891,1778991048000,-717.09996679,0.00034481,2]
[422488887,1778991048000,-150.0,0.00034446,7]
[422488893,1778991048000,-5000.0,0.000345,14]
[422488896,1778991048000,-150.0,0.00034575,7]
[422488902,1778991048000,-150.0,0.00034618,7]
[422488914,1778991048000,-150.0,0.0003483,7]
[422488907,1778991048000,-150.0,0.00034725,7]
[422488900,1778991048000,-549.0,0.00034613,10]
[422488905,1778991048000,-150.0,0.00034677,7]
[422488903,1778991048000,-150.0,0.00034629,7]
[422488904,1778991048000,-150.0,0.00034643,7]
[422488909,1778991048000,-150.0,0.00034773,7]
[422488919,1778991048000,-150.0,0.00034869,7]
[422488911,1778991048000,-150.0,0.0003479,7]
[422488908,1778991048000,-150.0,0.0003476,7]
[422488920,1778991048000,-150.0,0.00034913,7]
[422488910,1778991048000,-150.0,0.0003479,7]
[422488912,1778991048000,-1500.0,0.00034795,2]
[422488915,1778991048000,-1014.80766292,0.00034834,2]
[422488885,1778991048000,-512.398822,0.0003444,120]
[422488901,1778991048000,-150.0,0.00034618,7]
[422488888,1778991048000,-150.0,0.0003448,7]
[422488871,1778991048000,-150.0,0.00034293,7]
[422488894,1778991048000,-150.0,0.00034533,7]
[422488913,1778991048000,-150.0,0.00034821,7]
[422488857,1778991048000,-500.0,0.00034279,60]
[422488858,1778991048000,-500.0,0.00034279,60]
[422488856,1778991048000,-500.0,0.00034279,60]
[422488862,1778991048000,-500.0,0.00034279,60]
[422488861,1778991048000,-500.0,0.00034279,60]
[422488864,1778991048000,-500.0,0.00034279,60]
[422488870,1778991048000,-537.5987461,0.00034279,60]
[422488866,1778991048000,-500.0,0.00034279,60]
[422488863,1778991048000,-500.0,0.00034279,60]
[422488865,1778991048000,-500.0,0.00034279,60]
[422488859,1778991048000,-500.0,0.00034279,60]
[422488860,1778991048000,-500.0,0.00034279,60]
[422488886,1778991048000,-150.0,0.00034446,7]
[422488868,1778991048000,-500.0,0.00034279,60]
[422488867,1778991048000,-500.0,0.00034279,60]
[422488872,1778991048000,-478.13671681,0.00034297,3]
[422488873,1778991048000,-478.13671681,0.00034297,3]
[422488874,1778991048000,-292.49176448,0.00034297,3]
[422488882,1778991048000,-150.0,0.00034393,7]
[422488876,1778991048000,-1202.01,0.000343,30]
[422488877,1778991048000,-1000.0,0.00034327,22]
[422488878,1778991048000,-167.385,0.0003433,22]
[422488875,1778991048000,-292.49176448,0.00034297,3]
[422488879,1778991048000,-150.0,0.00034341,7]
[422488880,1778991048000,-150.0,0.00034372,7]
[422488881,1778991048000,-150.0,0.00034389,7]
[422488883,1778991048000,-150.0,0.00034431,7]
[422488869,1778991048000,-500.0,0.00034279,60]
[422488918,1778991048000,-150.0,0.00034859,7]
[422488884,1778991048000,-150.0,0.00034437,7]
[422488917,1778991048000,-210.95,0.00034848,14]
[422488980,1778991048000,-150.0,0.00035419,7]
[422488957,1778991048000,-151.0,0.00035174,30]
[422488952,1778991048000,-155.0,0.00035158,30]
[422488955,1778991048000,-193.0,0.00035158,30]
[422488954,1778991048000,-491.0,0.00035158,30]
[422488951,1778991048000,-343.0,0.00035158,30]
[422488956,1778991048000,-152.0,0.00035174,30]
[422488964,1778991048000,-150.0,0.00035205,7]
[422488960,1778991048000,-264.0,0.00035175,30]
[422488969,1778991048000,-180.62151535,0.00035273,14]
[422488967,1778991048000,-150.0,0.00035255,7]
[422488961,1778991048000,-150.0,0.00035184,7]
[422488966,1778991048000,-150.0,0.00035252,7]
[422488963,1778991048000,-167.385,0.000352,26]
[422488972,1778991048000,-150.0,0.000353,7]
[422488971,1778991048000,-438.15,0.000353,20]
[422488973,1778991048000,-150.0,0.00035307,7]
[422488970,1778991048000,-1000.0,0.00035299,20]
[422488962,1778991048000,-1500.0,0.000352,7]
[422488968,1778991048000,-150.0,0.00035267,7]
[422488975,1778991048000,-150.0,0.00035348,7]
[422488976,1778991048000,-1000.0,0.00035371,27]
[422488979,1778991048000,-150.0,0.00035413,7]
[422488981,1778991048000,-150.0,0.00035444,7]
[422488974,1778991048000,-150.0,0.00035307,7]
[422488982,1778991048000,-152.0,0.00035451,30]
[422488978,1778991048000,-150.0,0.00035396,7]
[422488977,1778991048000,-167.385,0.00035374,27]
[422488916,1778991048000,-210.95,0.00034848,14]
[422488953,1778991048000,-154.0,0.00035158,30]
[422488949,1778991048000,-150.0,0.00035157,7]
[422488965,1778991048000,-150.0,0.00035238,7]
[422488958,1778991048000,-156.0,0.00035175,30]
[422488948,1778991048000,-549.0,0.00035147,10]
[422488921,1778991048000,-150.0,0.00034917,7]
[422488923,1778991048000,-350.0,0.00034931,5]
[422488925,1778991048000,-150.0,0.00034963,7]
[422488924,1778991048000,-191.96350981,0.00034946,2]
[422488930,1778991048000,-222.29,0.00035,30]
[422488927,1778991048000,-150.0,0.00034965,7]
[422488928,1778991048000,-1239.09468855,0.00034968,7]
[422488926,1778991048000,-150.0,0.00034963,7]
[422488932,1778991048000,-9004.33,0.00035,14]
[422488922,1778991048000,-150.0,0.00034925,7]
[422488931,1778991048000,-53607.2600501,0.00035,2]
[422488933,1778991048000,-172081.98636019,0.00035,4]
[422488935,1778991048000,-1000.0,0.00035,90]
[422488929,1778991048000,-150.0,0.00034976,7]
[422488936,1778991048000,-74630.40499191,0.00035,2]
[422488941,1778991048000,-150.0,0.00035049,7]
[422488959,1778991048000,-152.0,0.00035175,30]
[422488950,1778991048000,-246.0,0.00035158,30]
[422488946,1778991048000,-150.0,0.00035135,7]
[422488945,1778991048000,-150.0,0.00035121,7]
[422488944,1778991048000,-150.0,0.00035109,7]